bitfinex/quotes_BTCUSD_20251009
["timestamp","ask_amount","ask_price","bid_price","bid_amount"]
[1760037730565,1.2552102,121010.0,121000.0,0.00194885]
[1760037730995,0.9351302,121010.0,121000.0,0.00194885]
[1760037731219,1.2552502,121010.0,121000.0,0.00194885]
[1760037731589,1.2552102,121010.0,121000.0,0.00194885]
[1760037732813,1.0210502,121010.0,121000.0,0.00194885]
[1760037733061,1.2552502,121010.0,121000.0,0.00194885]
[1760037733271,0.9351302,121010.0,121000.0,0.00194885]
[1760037733471,1.0210502,121010.0,121000.0,0.00194885]
[1760037733669,1.2552502,121010.0,121000.0,0.00194885]
[1760037734454,1.0210502,121010.0,121000.0,0.00194885]
[1760037734859,1.2552502,121010.0,121000.0,0.00194885]
[1760037736234,0.96791514,121010.0,121000.0,0.00194885]
[1760037736693,1.2706687,121010.0,121000.0,0.00194885]
[1760037737074,1.0364687,121010.0,121000.0,0.00194885]
[1760037737215,1.2706687,121010.0,121000.0,0.00194885]
[1760037737850,1.57342226,121010.0,121000.0,0.00194885]
[1760037738501,1.33922226,121010.0,121000.0,0.00194885]
[1760037738936,1.25330226,121010.0,121000.0,0.00194885]
[1760037739109,0.95592541,121010.0,121000.0,0.00194885]
[1760037739321,1.25867897,121010.0,121000.0,0.00194885]
[1760037739527,1.17275897,121010.0,121000.0,0.00194885]
[1760037739729,0.72172541,121010.0,121000.0,0.00194885]
[1760037740065,0.95592541,121010.0,121000.0,0.00194885]
[1760037740963,1.25867897,121010.0,121000.0,0.00194885]
[1760037741838,1.01855577,121010.0,121000.0,0.00194885]
[1760037742043,1.10447577,121010.0,121000.0,0.00194885]
[1760037742219,1.33867577,121010.0,121000.0,0.00194885]
[1760037743286,1.10447577,121010.0,121000.0,0.00194885]
[1760037743489,1.33867577,121010.0,121000.0,0.00194885]
[1760037743739,1.10447577,121010.0,121000.0,0.00194885]
[1760037743968,1.41494262,121010.0,121000.0,0.00194885]
[1760037744208,1.64914262,121010.0,121000.0,0.00194885]
[1760037744419,1.41494262,121010.0,121000.0,0.00194885]
[1760037744643,1.32902262,121010.0,121000.0,0.00194885]
[1760037744814,0.94627226,121010.0,121000.0,0.00194885]
[1760037745027,0.93855897,121010.0,121000.0,0.00194885]
[1760037745210,0.72176541,121010.0,121000.0,0.00194885]
[1760037745398,0.95397541,121010.0,121000.0,0.00194885]
[1760037745829,0.95479541,121010.0,121000.0,0.00194885]
[1760037746035,1.25754897,121010.0,121000.0,0.00194885]
[1760037746243,1.23272971,121010.0,121000.0,0.00194885]
[1760037746451,0.60981615,121010.0,121000.0,0.00194885]
[1760037746874,0.92997615,121010.0,121000.0,0.00194885]
[1760037747501,0.69577615,121010.0,121000.0,0.00194885]
[1760037747718,0.92997615,121010.0,121000.0,0.00194885]
[1760037748326,0.93770037,121010.0,121000.0,0.00194885]
[1760037748625,0.61754037,121010.0,121000.0,0.00194885]
[1760037748831,0.85174037,121010.0,121000.0,0.00194885]
[1760037749046,0.93770037,121010.0,121000.0,0.00194885]
[1760037752419,0.85092037,121010.0,121000.0,0.00194885]
[1760037752626,0.93727037,121010.0,121000.0,0.00194885]
[1760037753453,0.93728744,121010.0,121000.0,0.00194885]
[1760037754317,0.85416538,121010.0,121000.0,0.00194885]
[1760037754464,0.8541655,121010.0,121000.0,0.00194885]
[1760037755914,0.0252243,121010.0,121000.0,0.2650981]
[1760037756132,0.23616,121010.0,121000.0,0.2650981]
[1760037756714,0.23416,121010.0,121000.0,0.2650981]
[1760037757014,0.16526244,121020.0,121000.0,0.2650981]
[1760037757267,0.23416,121010.0,121000.0,0.26319972]
[1760037757749,0.34,121030.0,121010.0,0.16526806]
[1760037757997,0.23416,121020.0,121010.0,0.18792806]
[1760037758179,0.23416,121020.0,121010.0,0.26312806]
[1760037759394,0.39942194,121020.0,121010.0,0.26312806]
[1760037759871,0.40005194,121020.0,121010.0,0.21964806]
[1760037760618,0.22663727,121020.0,121010.0,0.21964806]
[1760037760854,0.22663727,121020.0,121010.0,0.26312806]
[1760037762250,0.22663727,121020.0,121010.0,0.21964806]
[1760037762489,0.39126921,121020.0,121010.0,0.21964806]
[1760037763962,0.39126921,121020.0,121010.0,0.21150548]
[1760037764162,0.39189921,121020.0,121010.0,0.21150548]
[1760037765677,0.24588874,121020.0,121010.0,0.16527559]
[1760037765879,0.48000874,121020.0,121010.0,0.16527559]
[1760037766086,0.24588874,121020.0,121010.0,0.16527559]
[1760037766283,0.48000874,121020.0,121010.0,0.16527559]
[1760037766904,0.24588874,121020.0,121010.0,0.16527559]
[1760037767102,0.48000874,121020.0,121010.0,0.19543559]
[1760037767361,0.48000874,121020.0,121010.0,0.26383559]
[1760037767562,0.47937874,121020.0,121010.0,0.26383559]
[1760037768499,0.30780526,121020.0,121010.0,0.26383559]
[1760037768965,0.50524886,121030.0,121010.0,0.26383559]
[1760037769205,0.23412,121020.0,121010.0,0.21873559]
[1760037769408,0.39938194,121020.0,121010.0,0.18857559]
[1760037769622,0.23412,121020.0,121010.0,0.18857559]
[1760037771261,0.59116886,121030.0,121010.0,0.18857559]
[1760037771511,0.59116886,121030.0,121020.0,0.16526194]
[1760037771718,0.50524828,121030.0,121020.0,0.16526194]
[1760037771897,0.59116828,121030.0,121020.0,0.16526194]
[1760037772100,0.08592,121030.0,121020.0,0.19542194]
[1760037772405,0.5225532,121040.0,121030.0,0.16524828]
[1760037772618,0.5225532,121040.0,121030.0,0.26380828]
[1760037772846,0.73463687,121040.0,121030.0,0.26380828]
[1760037773495,0.50051687,121040.0,121030.0,0.26380828]
[1760037773711,0.73463687,121040.0,121030.0,0.32655459]
[1760037774297,0.50051687,121040.0,121030.0,0.36815164]
[1760037774506,0.73463687,121040.0,121030.0,0.36815164]
[1760037775140,0.73463687,121040.0,121030.0,0.32655459]
[1760037776674,0.73459687,121040.0,121030.0,0.32655459]
[1760037778634,0.50051687,121040.0,121030.0,0.32655459]
[1760037779113,0.73459687,121040.0,121030.0,0.32655459]
[1760037781010,0.50051687,121040.0,121030.0,0.32655459]
[1760037781237,0.73459687,121040.0,121030.0,0.32655459]
[1760037781466,0.50075687,121040.0,121030.0,0.28145459]
[1760037781658,0.73483687,121040.0,121030.0,0.22799459]
[1760037782049,0.73498687,121040.0,121030.0,0.22799459]
[1760037782650,0.73483687,121040.0,121030.0,0.22799459]
[1760037784415,0.73483687,121040.0,121030.0,0.25706459]
[1760037785038,0.73483687,121040.0,121030.0,0.22799459]
[1760037787979,0.16524828,121030.0,121010.0,0.18856709]
[1760037788204,0.16524828,121030.0,121020.0,0.19433194]
[1760037788430,0.16548828,121030.0,121020.0,0.19433194]
[1760037788862,0.00024,121030.0,121020.0,0.19433194]
[1760037789086,0.39952828,121030.0,121020.0,0.19433194]
[1760037789323,0.23428,121030.0,121020.0,0.19433194]
[1760037789558,0.00024,121030.0,121020.0,0.21796194]
[1760037789804,1.28541687,121040.0,121030.0,0.16524828]
[1760037790041,1.17945687,121040.0,121030.0,0.21794828]
[1760037790289,1.17945687,121040.0,121030.0,0.26143828]
[1760037790742,0.94541687,121040.0,121030.0,0.26143828]
[1760037790973,1.17945687,121040.0,121030.0,0.26143828]
[1760037792087,0.94541687,121040.0,121030.0,0.26143828]
[1760037792335,1.17945687,121040.0,121030.0,0.26143828]
[1760037792813,0.94541687,121040.0,121030.0,0.26143828]
[1760037793054,1.17945687,121040.0,121030.0,0.26143828]
[1760037793548,0.94541687,121040.0,121030.0,0.26143828]
[1760037793995,1.17945687,121040.0,121030.0,0.26143828]
[1760037797625,0.94541687,121040.0,121030.0,0.26143828]
[1760037797777,1.17945687,121040.0,121030.0,0.26143828]
[1760037798990,0.94541687,121040.0,121030.0,0.26143828]
[1760037799213,1.17941687,121040.0,121030.0,0.26143828]
[1760037802271,0.94541687,121040.0,121030.0,0.26143828]
[1760037802673,1.17941687,121040.0,121030.0,0.26143828]
[1760037804376,0.94541687,121040.0,121030.0,0.26143828]
[1760037804581,1.17941687,121040.0,121030.0,0.26143828]
[1760037804956,0.94541687,121040.0,121030.0,0.26143828]
[1760037805131,1.17941687,121040.0,121030.0,0.26143828]
[1760037806001,0.94541687,121040.0,121030.0,0.26143828]
[1760037806232,1.17941687,121040.0,121030.0,0.26143828]
[1760037807775,0.94541687,121040.0,121030.0,0.26143828]
[1760037807995,1.17941687,121040.0,121030.0,0.26143828]
[1760037813389,0.94541687,121040.0,121030.0,0.26143828]
[1760037813542,1.17941687,121040.0,121030.0,0.26143828]
[1760037813748,1.17941687,121040.0,121030.0,0.29773278]
[1760037814524,0.94541687,121040.0,121030.0,0.29773278]
[1760037814728,0.50051687,121040.0,121030.0,0.61485484]
[1760037815371,0.50051687,121040.0,121030.0,0.38085484]
[1760037815753,0.50051687,121040.0,121030.0,0.61481484]
[1760037819958,0.50051687,121040.0,121030.0,0.38085484]
[1760037820189,0.50051687,121040.0,121030.0,0.61481484]
[1760037820623,0.50051687,121040.0,121030.0,0.64496674]
[1760037820847,0.32850695,121040.0,121030.0,0.64496674]
[1760037821672,0.32850695,121040.0,121030.0,0.41100674]
[1760037821899,0.32850695,121040.0,121030.0,0.64496674]
[1760037822772,0.32850695,121040.0,121030.0,0.41100674]
[1760037823161,0.32850695,121040.0,121030.0,0.73084674]
[1760037824085,0.32850695,121040.0,121030.0,0.41100674]
[1760037824325,0.32850695,121040.0,121030.0,0.73084674]
[1760037825536,0.32850695,121040.0,121030.0,0.41100674]
[1760037825758,0.32850695,121040.0,121030.0,0.70069484]
[1760037825960,0.32850695,121040.0,121030.0,0.61477484]
[1760037828188,0.32850695,121040.0,121030.0,0.38085484]
[1760037828420,0.32850695,121040.0,121030.0,0.61477484]
[1760037832847,0.32850695,121040.0,121030.0,0.38085484]
[1760037832995,0.32850695,121040.0,121030.0,0.61477484]
[1760037833242,0.32850695,121040.0,121030.0,0.64492674]
[1760037838860,0.32850695,121040.0,121030.0,0.41100674]
[1760037839076,0.32850695,121040.0,121030.0,0.64488674]
[1760037848883,0.32850695,121040.0,121030.0,0.98488674]
[1760037849158,0.32850695,121040.0,121030.0,0.75100674]
[1760037849378,0.32850695,121040.0,121030.0,0.98488674]
[1760037850963,0.00487261,121050.0,121040.0,0.53538653]
[1760037851160,0.0002,121070.0,121060.0,0.16520733]
[1760037851371,0.0002,121070.0,121060.0,0.51142939]
[1760037851574,0.0002,121070.0,121060.0,0.53471939]
[1760037851792,0.00175018,121070.0,121060.0,0.34706939]
[1760037852012,0.00175018,121070.0,121060.0,0.58090939]
[1760037852183,0.00180067,121070.0,121060.0,0.61820389]
[1760037852388,0.00180067,121070.0,121060.0,0.61720389]
[1760037852804,0.00180067,121070.0,121060.0,0.61820389]
[1760037853154,0.00180067,121070.0,121060.0,0.38436389]
[1760037853366,0.00180067,121070.0,121060.0,0.61820389]
[1760037854590,0.00180067,121070.0,121060.0,0.38436389]
[1760037854801,0.00180067,121070.0,121060.0,0.61820389]
[1760037855012,0.00180067,121070.0,121060.0,0.44618407]
[1760037855218,0.00180067,121070.0,121060.0,0.68002407]
[1760037860032,0.00180067,121070.0,121060.0,0.71017597]
[1760037860994,0.00180067,121070.0,121060.0,0.71013597]
[1760037862487,0.00180067,121070.0,121060.0,0.44618407]
[1760037862724,0.00180067,121070.0,121060.0,0.67998407]
[1760037863085,0.00180067,121070.0,121060.0,0.44618407]
[1760037863290,0.00180067,121070.0,121060.0,0.67998407]
[1760037863757,0.00180067,121070.0,121060.0,0.44618407]
[1760037863923,0.00180067,121070.0,121060.0,0.67998407]
[1760037866948,0.00180067,121070.0,121060.0,0.68329048]
[1760037870136,0.00180067,121070.0,121060.0,0.68325048]
[1760037870343,0.00180067,121070.0,121060.0,0.44949048]
[1760037870543,0.00180067,121070.0,121060.0,0.68325048]
[1760037872006,0.00180067,121070.0,121060.0,0.44949048]
[1760037872216,0.00180067,121070.0,121060.0,0.68325048]
[1760037872852,0.00180067,121070.0,121060.0,0.44949048]
[1760037873062,0.00180067,121070.0,121060.0,0.68325048]
[1760037873272,0.00180067,121070.0,121060.0,0.44949048]
[1760037873478,0.00180067,121070.0,121060.0,0.68325048]
[1760037873896,0.00180067,121070.0,121060.0,0.44949048]
[1760037874102,0.00180067,121070.0,121060.0,0.68325048]
[1760037874923,0.00180067,121070.0,121060.0,0.44949048]
[1760037875146,0.00180067,121070.0,121060.0,0.64695598]
[1760037880968,0.00180067,121070.0,121060.0,0.41319598]
[1760037881194,0.00180067,121070.0,121060.0,0.64695598]
[1760037881366,0.00180067,121070.0,121060.0,0.41319598]
[1760037881532,0.00180067,121070.0,121060.0,0.64695598]
[1760037886476,0.00180067,121070.0,121060.0,0.64695598]
[1760037887792,0.00180067,121070.0,121060.0,0.41319598]
[1760037887994,0.00180067,121070.0,121060.0,0.64691598]
[1760037891242,0.16699435,121070.0,121060.0,0.33007392]
[1760037891447,0.16699435,121070.0,121060.0,0.22802751]
[1760037892079,0.20023185,121070.0,121060.0,0.06282018]
[1760037892739,0.20023185,121070.0,121060.0,0.09109018]
[1760037892942,0.16699435,121070.0,121060.0,0.06282018]
[1760037893994,0.16699435,121070.0,121060.0,0.25629751]
[1760037894506,0.16699435,121070.0,121060.0,0.09109018]
[1760037894721,0.16699435,121070.0,121060.0,0.02927]
[1760037896407,0.16699435,121070.0,121060.0,0.001]
[1760037897465,0.16699435,121070.0,121060.0,0.16620733]
[1760037898065,0.16699435,121070.0,121060.0,0.001]
[1760037899426,0.16699435,121070.0,121060.0,0.16620733]
[1760037900519,0.00180067,121070.0,121060.0,0.16620733]
[1760037900722,0.00180067,121070.0,121060.0,0.21574733]
[1760037902553,0.16699435,121070.0,121060.0,0.21574733]
[1760037902995,0.00180067,121070.0,121060.0,0.25824733]
[1760037903220,0.00180067,121070.0,121060.0,0.34136939]
[1760037903635,0.00180067,121070.0,121060.0,0.36616752]
[1760037903859,0.00180067,121070.0,121060.0,0.71591942]
[1760037905065,0.00180067,121070.0,121060.0,0.71491942]
[1760037905280,0.00180067,121070.0,121060.0,0.71691942]
[1760037905484,0.00180067,121070.0,121060.0,0.77978645]
[1760037905697,0.00180067,121070.0,121060.0,1.11978645]
[1760037907240,1e-08,121070.0,121060.0,0.88606645]
[1760037907426,1e-08,121070.0,121060.0,1.11978645]
[1760037912006,1e-08,121070.0,121060.0,0.80018645]
[1760037912254,1e-08,121070.0,121060.0,1.11974645]
[1760037913083,1e-08,121070.0,121060.0,0.80018645]
[1760037913509,1e-08,121070.0,121060.0,1.11974645]
[1760037914577,1e-08,121070.0,121060.0,0.88606645]
[1760037914734,1e-08,121070.0,121060.0,1.11974645]
[1760037915148,1e-08,121070.0,121060.0,1.03386645]
[1760037915371,1e-08,121070.0,121060.0,1.11974645]
[1760037920553,1e-08,121070.0,121060.0,1.03382645]
[1760037920778,1e-08,121070.0,121060.0,1.11970645]
[1760037921662,1e-08,121070.0,121060.0,0.80018645]
[1760037921858,1e-08,121070.0,121060.0,1.11970645]
[1760037922085,1e-08,121070.0,121060.0,0.80018645]
[1760037922295,1e-08,121070.0,121060.0,1.11970645]
[1760037924533,1e-08,121070.0,121060.0,0.88606645]
[1760037924735,1e-08,121070.0,121060.0,1.11970645]
[1760037927190,0.30827511,121120.0,121100.0,0.16514664]
[1760037927410,0.16513997,121110.0,121100.0,0.16514664]
[1760037927628,0.16513997,121110.0,121100.0,0.19410664]
[1760037927845,0.16513997,121110.0,121100.0,0.21527664]
[1760037928089,0.16720594,121110.0,121100.0,0.21527664]
[1760037928473,0.16720594,121110.0,121100.0,0.28305022]
[1760037928677,0.16720594,121110.0,121100.0,0.32555022]
[1760037928890,0.17646289,121110.0,121100.0,0.32555022]
[1760037929100,0.17646289,121110.0,121100.0,0.25777664]
[1760037929962,0.17846289,121110.0,121100.0,0.21527664]
[1760037930404,0.17846289,121110.0,121100.0,0.25777664]
[1760037930749,0.17846289,121110.0,121100.0,0.21527664]
[1760037932130,0.17020509,121110.0,121100.0,0.21527664]
[1760037932332,0.00506597,121110.0,121100.0,0.21527664]
[1760037932540,0.17020509,121110.0,121100.0,0.21527664]
[1760037932745,0.00506597,121110.0,121100.0,0.21527664]
[1760037933417,0.00506597,121110.0,121100.0,0.26166664]
[1760037934071,0.00506597,121110.0,121100.0,0.33077948]
[1760037935465,0.00506597,121110.0,121100.0,0.26166664]
[1760037935677,0.17020509,121110.0,121100.0,0.26166664]
[1760037936090,0.00506597,121110.0,121100.0,0.26166664]
[1760037937327,0.17020509,121110.0,121100.0,0.26166664]
[1760037937971,0.00506597,121110.0,121100.0,0.26166664]
[1760037938442,0.00506597,121110.0,121100.0,0.30741548]
[1760037939304,0.00506597,121110.0,121100.0,0.26166664]
[1760037940514,0.17020509,121110.0,121100.0,0.21528276]
[1760037940788,0.17020509,121110.0,121100.0,0.26167276]
[1760037941143,0.17020509,121110.0,121100.0,0.21528276]
[1760037942392,0.00506597,121110.0,121100.0,0.21528276]
[1760037942795,0.17020509,121110.0,121100.0,0.21528276]
[1760037942993,0.00506597,121110.0,121100.0,0.21528276]
[1760037944849,0.17020509,121110.0,121100.0,0.16515276]
[1760037945051,0.17020509,121110.0,121100.0,0.19588276]
[1760037945406,0.00506597,121110.0,121100.0,0.19588276]
[1760037945612,0.00506597,121110.0,121100.0,0.26269276]
[1760037946052,0.17020509,121110.0,121100.0,0.26269276]
[1760037946259,0.00506597,121110.0,121100.0,0.21690276]
[1760037946786,0.17020509,121110.0,121100.0,0.21690276]
[1760037948120,0.00506597,121110.0,121100.0,0.21690276]
[1760037948321,0.00506597,121110.0,121100.0,0.32433771]
[1760037948731,0.17020509,121110.0,121100.0,0.32433771]
[1760037948887,0.17020509,121110.0,121100.0,0.27854771]
[1760037949291,0.00506597,121110.0,121100.0,0.27854771]
[1760037954039,0.00506597,121110.0,121100.0,0.32433771]
[1760037956541,0.17020509,121110.0,121100.0,0.27854771]
[1760037957642,0.00506597,121110.0,121100.0,0.27854771]
[1760037958032,0.17020509,121110.0,121100.0,0.27854771]
[1760037958478,0.17020509,121110.0,121100.0,0.21690276]
[1760037960795,0.00506597,121110.0,121100.0,0.21690276]
[1760037961042,0.00506597,121110.0,121100.0,0.33190021]
[1760037961466,0.00506597,121110.0,121100.0,0.41502227]
[1760037961678,0.00506597,121110.0,121100.0,0.64858227]
[1760037962387,0.00306597,121110.0,121100.0,1.10964014]
[1760037962602,0.00206597,121110.0,121100.0,1.10964014]
[1760037962825,0.00206597,121110.0,121100.0,1.17117363]
[1760037963071,0.00206597,121110.0,121100.0,0.93861363]
[1760037963519,0.00206597,121110.0,121100.0,0.85277363]
[1760037963950,0.00206597,121110.0,121100.0,1.08629363]
[1760037967072,0.00206597,121110.0,121100.0,0.85277363]
[1760037967289,0.00206597,121110.0,121100.0,1.08629363]
[1760037967469,0.00206597,121110.0,121100.0,0.78356618]
[1760037967711,0.00206597,121110.0,121100.0,1.01708618]
[1760037969452,0.00206597,121110.0,121100.0,0.78356618]
[1760037969686,0.00206597,121110.0,121100.0,0.41341428]
[1760037969954,0.16720509,121110.0,121100.0,0.51295625]
[1760037970177,0.16720509,121110.0,121100.0,0.05275]
[1760037970393,0.46953191,121110.0,121100.0,0.001]
[1760037971036,0.16720509,121110.0,121100.0,0.001]
[1760037971255,0.46953191,121110.0,121100.0,0.001]
[1760037971474,0.16720509,121110.0,121100.0,0.001]
[1760037971908,0.70305191,121110.0,121100.0,0.001]
[1760037972352,0.16720509,121110.0,121100.0,0.001]
[1760037972575,0.40072509,121110.0,121100.0,0.02937]
[1760037972788,0.40072509,121110.0,121100.0,0.02837]
[1760037973013,0.40172509,121110.0,121100.0,0.02837]
[1760037973855,0.40372509,121110.0,121100.0,0.02837]
[1760037974671,0.40372509,121110.0,121090.0,0.22768545]
[1760037974832,0.40165912,121110.0,121090.0,0.22768545]
[1760037975330,0.16515276,121100.0,121090.0,0.22768545]
[1760037975553,0.40165912,121110.0,121090.0,0.25605545]
[1760037975888,0.16515276,121100.0,121090.0,0.21460545]
[1760037978637,0.16513912,121110.0,121090.0,0.21460545]
[1760037978855,0.39865912,121110.0,121090.0,0.21460545]
[1760037979078,0.16513912,121110.0,121090.0,0.21460545]
[1760037979336,0.39865912,121110.0,121090.0,0.25605545]
[1760037979532,0.16513912,121110.0,121090.0,0.25605545]
[1760037979717,0.39865912,121110.0,121090.0,0.25605545]
[1760037979926,0.16515276,121100.0,121090.0,0.25605545]
[1760037980128,0.16670236,121100.0,121090.0,0.25605545]
[1760037980955,0.0015496,121100.0,121090.0,0.25605545]
[1760037981568,0.0015496,121100.0,121090.0,0.21460545]
[1760037981780,0.16670236,121100.0,121090.0,0.21460545]
[1760037982186,0.0015496,121100.0,121090.0,0.21460545]
[1760037982736,0.16670236,121100.0,121090.0,0.21460545]
[1760037983307,0.16670236,121100.0,121090.0,0.28302291]
[1760037984082,0.0015496,121100.0,121090.0,0.28302291]
[1760037984468,0.16670236,121100.0,121090.0,0.28302291]
[1760037985731,0.0015496,121100.0,121090.0,0.28302291]
[1760037986761,0.16670236,121100.0,121090.0,0.28302291]
[1760037986990,0.16670236,121100.0,121090.0,0.21460545]
[1760037987187,0.0015496,121100.0,121090.0,0.21460545]
[1760037988652,0.0015496,121100.0,121090.0,0.25605545]
[1760037988885,0.16670236,121100.0,121090.0,0.21460545]
[1760037989308,0.0015496,121100.0,121090.0,0.21460545]
[1760037989508,0.16670236,121100.0,121090.0,0.21460545]
[1760037989717,0.16670236,121100.0,121090.0,0.1651664]
[1760037990139,0.0015496,121100.0,121090.0,0.1651664]
[1760037990346,0.0015496,121100.0,121090.0,0.1935364]
[1760037991027,0.16670236,121100.0,121090.0,0.1935364]
[1760037992878,0.0015496,121100.0,121090.0,0.1935364]
[1760037993307,0.0015496,121100.0,121090.0,0.2151564]
[1760037994030,0.16670236,121100.0,121090.0,0.2151564]
[1760037994413,0.0015496,121100.0,121090.0,0.2151564]
[1760037994783,0.16670236,121100.0,121090.0,0.2151564]
[1760037996740,0.0015496,121100.0,121090.0,0.2151564]
[1760037998917,0.16670236,121100.0,121090.0,0.2151564]
[1760038001795,0.0015496,121100.0,121090.0,0.2587364]
[1760038002624,0.00132063,121100.0,121090.0,0.32741796]
[1760038004185,0.00132063,121100.0,121090.0,0.28383796]
[1760038004398,0.00132063,121100.0,121090.0,0.2151564]
[1760038005235,0.00132063,121100.0,121090.0,0.2587364]
[1760038011871,0.16647339,121100.0,121090.0,0.1867864]
[1760038012086,0.16647339,121100.0,121090.0,0.1651664]
[1760038012283,0.16647339,121100.0,121090.0,0.1945964]
[1760038012722,0.00132063,121100.0,121090.0,0.1945964]
[1760038013787,0.16647339,121100.0,121090.0,0.1945964]
[1760038014227,0.00132063,121100.0,121090.0,0.1945964]
[1760038015650,0.00132063,121100.0,121090.0,0.2161164]
[1760038019511,0.16647339,121100.0,121090.0,0.2161164]
[1760038019950,0.00132063,121100.0,121090.0,0.2161164]
[1760038021229,0.00132063,121100.0,121090.0,0.2575564]
[1760038021884,0.16647339,121100.0,121090.0,0.2161164]
[1760038022306,0.00132063,121100.0,121090.0,0.2161164]
[1760038022525,0.00132063,121100.0,121090.0,0.1866864]
[1760038022835,0.16647339,121100.0,121090.0,0.1866864]
[1760038023215,0.00132063,121100.0,121090.0,0.2134164]
[1760038024067,0.16647339,121100.0,121090.0,0.2134164]
[1760038024711,0.00132063,121100.0,121090.0,0.2134164]
[1760038026240,0.16647339,121100.0,121090.0,0.2134164]
[1760038026812,0.00132063,121100.0,121090.0,0.2563864]
[1760038028270,0.82842953,121110.0,121090.0,0.32482896]
[1760038029124,0.82842953,121110.0,121100.0,0.16515276]
[1760038029544,0.82942953,121110.0,121090.0,0.1867864]
[1760038029739,0.59598953,121110.0,121090.0,0.2135164]
[1760038029967,0.16515276,121100.0,121090.0,0.2135164]
[1760038030182,0.83042953,121110.0,121090.0,0.2135164]
[1760038030778,0.82942953,121110.0,121090.0,0.2135164]
[1760038031054,0.83142953,121110.0,121090.0,0.2135164]
[1760038031188,0.23344,121100.0,121090.0,0.2135164]
[1760038031599,0.39859276,121100.0,121090.0,0.2135164]
[1760038031800,0.16515276,121100.0,121090.0,0.04835]
[1760038032007,0.17401301,121100.0,121090.0,0.0001]
[1760038032582,0.40745301,121100.0,121090.0,0.0001]
[1760038032700,0.17401301,121100.0,121090.0,0.0001]
[1760038032905,0.39859276,121100.0,121090.0,0.0001]
[1760038036232,0.40808964,121100.0,121090.0,0.0001]
[1760038038366,0.16515276,121100.0,121090.0,0.1652664]
[1760038038570,0.39859276,121100.0,121090.0,0.1652664]
[1760038039878,0.39859276,121100.0,121090.0,0.0001]
[1760038041069,0.24514956,121100.0,121090.0,0.0001]
[1760038041284,0.47858956,121100.0,121090.0,0.0001]
[1760038043703,0.39859276,121100.0,121090.0,0.0001]
[1760038044812,0.16515276,121100.0,121090.0,0.0001]
[1760038044994,0.39855276,121100.0,121090.0,0.0001]
[1760038047113,0.39855276,121100.0,121090.0,0.1652664]
[1760038047509,0.22559523,121100.0,121090.0,0.0001]
[1760038047733,0.39074799,121100.0,121090.0,0.0001]
[1760038048149,0.16515276,121100.0,121090.0,0.0001]
[1760038048394,0.39855276,121100.0,121090.0,0.0001]
[1760038048817,0.43045744,121100.0,121090.0,0.0001]
[1760038049052,0.45525631,121100.0,121090.0,0.0001]
[1760038049241,0.43045744,121100.0,121090.0,0.0001]
[1760038049498,0.39855276,121100.0,121090.0,0.0001]
[1760038051128,0.42335163,121100.0,121090.0,0.0001]
[1760038053450,0.42335163,121100.0,121090.0,0.1652664]
[1760038053703,0.42335163,121100.0,121090.0,0.0001]
[1760038056228,0.02479887,121100.0,121090.0,0.2542164]
[1760038056441,0.43036684,121110.0,121100.0,0.16515276]
[1760038056442,0.00051643,121110.0,121100.0,0.16515276]
[1760038056663,0.00051643,121110.0,121100.0,0.25410276]
[1760038057316,0.00051643,121110.0,121100.0,0.91062482]
[1760038057557,0.00051643,121110.0,121100.0,0.94077672]
[1760038057767,0.00051643,121110.0,121100.0,0.74318093]
[1760038057987,0.00051643,121110.0,121100.0,1.00237008]
[1760038058423,0.00051643,121110.0,121100.0,0.82953137]
[1760038058643,0.00051643,121110.0,121100.0,1.06193137]
[1760038058826,1e-08,121110.0,121100.0,0.82853137]
[1760038059070,1e-08,121110.0,121100.0,0.82953137]
[1760038059283,1e-08,121110.0,121100.0,1.14881137]
[1760038059933,1e-08,121120.0,121110.0,0.16513912]
[1760038060148,1e-08,121120.0,121110.0,0.35435377]
[1760038060354,1e-08,121120.0,121110.0,0.38140377]
[1760038060780,1e-08,121120.0,121110.0,0.70064377]
[1760038060998,1e-08,121120.0,121110.0,0.61476377]
[1760038061327,1e-08,121120.0,121110.0,0.70160377]
[1760038063591,1e-08,121120.0,121110.0,0.70060377]
[1760038063914,1e-08,121120.0,121110.0,0.80260377]
[1760038064320,1e-08,121120.0,121110.0,0.80360377]
[1760038064968,1e-08,121120.0,121110.0,0.80260377]
[1760038065191,1e-08,121120.0,121110.0,0.80360377]
[1760038065401,1e-08,121120.0,121110.0,0.71772377]
[1760038065628,1e-08,121120.0,121110.0,0.48440377]
[1760038065776,0.00051638,121120.0,121110.0,0.80356377]
[1760038066693,0.00051638,121120.0,121110.0,0.80686827]
[1760038071511,0.00051638,121120.0,121110.0,0.80682827]
[1760038072178,0.00051638,121120.0,121110.0,0.48770827]
[1760038072388,0.00051638,121120.0,121110.0,0.80682827]
[1760038072824,0.00051638,121120.0,121110.0,0.48770827]
[1760038073033,0.00051638,121120.0,121110.0,0.80682827]
[1760038073335,0.00051638,121120.0,121110.0,0.48470827]
[1760038073501,0.00051638,121120.0,121110.0,0.80582827]
[1760038074050,0.00051638,121120.0,121110.0,0.80482827]
[1760038075592,0.00051638,121120.0,121110.0,0.48570827]
[1760038075745,0.00051638,121120.0,121110.0,0.80482827]
[1760038076668,0.00051638,121120.0,121110.0,0.57154827]
[1760038076967,0.00051638,121120.0,121110.0,0.80482827]
[1760038077786,0.09503757,121170.0,121150.0,0.16507283]
[1760038077994,0.09508804,121170.0,121150.0,0.23166283]
[1760038078439,0.09508804,121170.0,121160.0,0.16507098]
[1760038078643,0.09508804,121170.0,121150.0,0.26746704]
[1760038079590,0.09608804,121170.0,121160.0,0.16507098]
[1760038079789,0.09808804,121170.0,121160.0,0.16507098]
[1760038080403,5.047e-05,121170.0,121160.0,0.19275098]
[1760038080618,0.16510782,121170.0,121160.0,0.09427]
[1760038080809,0.16810782,121170.0,121150.0,0.48968611]
[1760038081613,0.16507098,121160.0,121150.0,0.46490283]
[1760038081871,0.16507098,121160.0,121150.0,0.21492283]
[1760038082093,0.16509823,121140.0,121130.0,0.18728156]
[1760038082229,0.1650846,121150.0,121130.0,0.53132362]
[1760038082436,0.1650846,121150.0,121130.0,0.60052989]
[1760038082639,0.1650846,121150.0,121140.0,0.16509823]
[1760038082885,0.1650846,121150.0,121140.0,0.22710823]
[1760038083182,0.17332452,121160.0,121140.0,0.31012741]
[1760038083394,0.18871671,121160.0,121150.0,0.1855446]
[1760038083599,0.17538921,121160.0,121150.0,0.02046]
[1760038083805,0.17538921,121160.0,121150.0,0.1855446]
[1760038084236,0.19079119,121160.0,121150.0,0.1855446]
[1760038084827,0.00206469,121160.0,121150.0,0.25400988]
[1760038085034,0.00206469,121160.0,121150.0,0.29555988]
[1760038086165,0.01746783,121160.0,121150.0,0.29555988]
[1760038086828,0.01846783,121160.0,121150.0,0.29555988]
[1760038087234,0.01746783,121160.0,121150.0,0.29555988]
[1760038089262,0.01752835,121160.0,121150.0,0.29555988]
[1760038089683,0.02526018,121160.0,121150.0,0.29555988]
[1760038092941,0.02526018,121160.0,121150.0,0.2541946]
[1760038093247,0.19033116,121160.0,121150.0,0.2541946]